bitfinex-derivatives/quotes_BTCF0:USTF0_20220103
["timestamp","ask_amount","ask_price","bid_price","bid_amount"]
[1641172752492,0.27647729,47076.0,47075.0,0.14033567]
[1641172753895,0.09047729,47076.0,47075.0,0.14033567]
[1641172754495,0.187,47076.0,47075.0,0.14033567]
[1641172755196,0.27747729,47076.0,47075.0,0.14033567]
[1641172755895,0.09047729,47076.0,47075.0,0.14033567]
[1641172756501,0.27647729,47076.0,47075.0,0.14033567]
[1641172757396,0.45647729,47076.0,47075.0,0.14033567]
[1641172757796,0.27647729,47076.0,47075.0,0.14033567]
[1641172757997,0.09047729,47076.0,47075.0,0.14033567]
[1641172758602,0.28147729,47076.0,47075.0,0.14033567]
[1641172758998,0.191,47076.0,47075.0,0.14033567]
[1641172759599,0.28147729,47076.0,47075.0,0.14033567]
[1641172759800,0.09047729,47076.0,47075.0,0.14033567]
[1641172760500,0.28147729,47076.0,47075.0,0.14033567]
[1641172761099,0.191,47076.0,47075.0,0.14033567]
[1641172762307,0.09047729,47076.0,47075.0,0.14033567]
[1641172762500,0.28147729,47076.0,47075.0,0.14033567]
[1641172762902,0.191,47076.0,47075.0,0.14033567]
[1641172763801,1.44645999,47078.0,47075.0,0.14033567]
[1641172764202,0.09047729,47076.0,47075.0,0.14033567]
[1641172764803,1.63745999,47078.0,47075.0,0.14033567]
[1641172765605,0.09047729,47076.0,47075.0,0.14033567]
[1641172766506,0.192,47076.0,47075.0,0.14033567]
[1641172767506,0.28247729,47076.0,47075.0,0.14033567]
[1641172767907,0.09047729,47076.0,47075.0,0.14033567]
[1641172768517,0.28147729,47076.0,47075.0,0.14033567]
[1641172768918,0.46147729,47076.0,47075.0,0.14033567]
[1641172769319,0.28147729,47076.0,47075.0,0.14033567]
[1641172769520,0.46147729,47076.0,47075.0,0.14033567]
[1641172769819,0.28147729,47076.0,47075.0,0.14033567]
[1641172770419,0.09047729,47076.0,47075.0,0.14033567]
[1641172770618,0.28147729,47076.0,47075.0,0.14033567]
[1641172771822,0.09047729,47076.0,47075.0,0.14033567]
[1641172772624,0.19,47076.0,47075.0,0.14033567]
[1641172773325,0.28047729,47076.0,47075.0,0.14033567]
[1641172773928,0.09047729,47076.0,47075.0,0.14033567]
[1641172774526,0.28047729,47076.0,47075.0,0.14033567]
[1641172775826,0.09047729,47076.0,47075.0,0.14033567]
[1641172776528,0.28047729,47076.0,47075.0,0.14033567]
[1641172777129,0.19,47076.0,47075.0,0.14033567]
[1641172777328,0.37,47076.0,47075.0,0.14033567]
[1641172777531,0.19,47076.0,47075.0,0.14033567]
[1641172777930,0.09047729,47080.0,47075.0,0.14033567]
[1641172778129,0.18,47076.0,47075.0,0.14033567]
[1641172778330,0.09047729,47080.0,47075.0,0.14033567]
[1641172778530,0.09047729,47076.0,47075.0,0.14033567]
[1641172779429,0.09047729,47079.0,47075.0,0.14033567]
[1641172779629,0.18,47077.0,47075.0,0.14033567]
[1641172780234,0.09047729,47079.0,47075.0,0.14033567]
[1641172780429,0.09047729,47076.0,47075.0,0.14033567]
[1641172781531,0.19,47077.0,47075.0,0.14033567]
[1641172782336,0.09047729,47076.0,47075.0,0.14033567]
[1641172784634,0.28047729,47076.0,47075.0,0.14033567]
[1641172785035,0.19,47076.0,47075.0,0.14033567]
[1641172785834,0.09047729,47080.0,47075.0,0.14033567]
[1641172786034,0.09047729,47076.0,47075.0,0.14033567]
[1641172786535,0.19,47076.0,47075.0,0.14033567]
[1641172787539,0.28047729,47076.0,47075.0,0.14033567]
[1641172787940,0.09047729,47076.0,47075.0,0.14033567]
[1641172788639,0.28047729,47076.0,47075.0,0.14033567]
[1641172789039,0.19,47076.0,47075.0,0.14033567]
[1641172789844,0.28047729,47076.0,47075.0,0.14033567]
[1641172790042,0.09047729,47076.0,47075.0,0.14033567]
[1641172790548,0.27647729,47076.0,47075.0,0.14033567]
[1641172791345,0.27647729,47076.0,47071.0,0.36030634]
[1641172791948,0.27647729,47076.0,47074.0,0.18]
[1641172792145,1e-08,47076.0,47075.0,1.20376249]
[1641172792345,1e-08,47076.0,47075.0,1.51652245]
[1641172792545,1.81087678,47091.0,47079.0,0.0637215]
[1641172792946,1.81087678,47091.0,47080.0,0.319243]
[1641172793148,1.81087678,47091.0,47084.0,0.18]
[1641172793548,1.67054111,47091.0,47085.0,0.31388]
[1641172793946,1.67054111,47091.0,47088.0,0.14033567]
[1641172794146,0.2,47096.0,47088.0,0.14033567]
[1641172794645,0.2,47096.0,47088.0,0.32733567]
[1641172795045,0.02,47096.0,47088.0,0.32733567]
[1641172795945,0.02,47096.0,47088.0,0.14033567]
[1641172796847,0.18,47093.0,47088.0,0.32733567]
[1641172798249,0.18,47093.0,47088.0,0.14033567]
[1641172798748,0.18,47093.0,47088.0,0.32533567]
[1641172799949,0.07368,47090.0,47088.0,0.14033567]
[1641172800549,0.25368,47090.0,47088.0,0.31933567]
[1641172800755,0.42768,47090.0,47088.0,0.31933567]
[1641172801151,0.24768,47090.0,47088.0,0.31933567]
[1641172801950,0.07368,47090.0,47088.0,0.14033567]
[1641172802578,0.07368,47090.0,47088.0,0.31433567]
[1641172802779,0.25568,47090.0,47088.0,0.31433567]
[1641172803680,0.43568,47090.0,47088.0,0.31433567]
[1641172803880,0.43568,47090.0,47088.0,0.14033567]
[1641172804079,0.25368,47090.0,47088.0,0.14033567]
[1641172804681,0.43768,47090.0,47088.0,0.30633567]
[1641172804882,0.02124344,47089.0,47088.0,0.30633567]
[1641172805684,0.02124546,47089.0,47075.0,1.8998]
[1641172805887,0.18,47081.0,47075.0,1.8998]
[1641172806084,0.32033567,47081.0,47071.0,0.14033567]
[1641172806284,0.18,47074.0,47071.0,0.14033567]
[1641172806486,0.2553,47074.0,47062.0,1.77224766]
[1641172807794,0.84070653,47064.0,47062.0,1.77224766]
[1641172807996,0.92095653,47064.0,47062.0,0.02124766]
[1641172808587,0.92095653,47064.0,47062.0,0.20124766]
[1641172808588,0.25925,47064.0,47062.0,0.20124766]
[1641172809489,0.14033567,47071.0,47062.0,0.02124766]
[1641172809789,1.58121937,47071.0,47062.0,0.02124766]
[1641172809988,1.58121937,47071.0,47062.0,0.11065766]
[1641172810187,0.0905134,47063.0,47062.0,0.91065766]
[1641172810388,0.0905134,47063.0,47062.0,1.09065766]
[1641172810589,1.6238837,47071.0,47062.0,2.67425266]
[1641172810788,1.6238837,47071.0,47066.0,0.18]
[1641172810991,1.6238837,47071.0,47066.0,0.33253848]
[1641172811189,1.6238837,47071.0,47067.0,0.314338]
[1641172811390,1.6238837,47071.0,47069.0,0.18]
[1641172811589,1.6238837,47071.0,47069.0,0.36174099]
[1641172811988,1.4408837,47071.0,47070.0,0.14033567]
[1641172812391,1.6208837,47071.0,47070.0,0.14033567]
[1641172812590,1.7618837,47071.0,47070.0,0.149]
[1641172812790,0.321,47071.0,47070.0,0.149]
[1641172812992,0.34225263,47071.0,47070.0,0.149]
[1641172813790,1.78313633,47071.0,47070.0,0.149]
[1641172814089,1.783472,47071.0,47061.0,0.14033567]
[1641172814290,0.18,47064.0,47061.0,0.14033567]
[1641172816591,0.37,47064.0,47061.0,0.14033567]
[1641172817997,0.18,47064.0,47061.0,0.14033567]
[1641172818599,0.371,47064.0,47061.0,0.14033567]
[1641172819100,0.371,47064.0,47056.0,0.14033567]
[1641172819300,0.18,47062.0,47056.0,0.14033567]
[1641172819703,0.18,47057.0,47054.0,0.36174099]
[1641172819902,0.25189,47057.0,47054.0,0.36174099]
[1641172820100,0.14033567,47055.0,47054.0,0.36174099]
[1641172820700,0.32533567,47055.0,47054.0,0.36174099]
[1641172820901,0.32533567,47055.0,47052.0,0.60290165]
[1641172821101,0.32533567,47055.0,47045.0,1.7898]
[1641172821308,0.32533567,47055.0,47044.0,0.36174099]
[1641172821501,0.06,47054.0,47044.0,0.36174099]
[1641172821903,0.06,47054.0,47045.0,0.01207141]
[1641172822803,0.249,47054.0,47044.0,0.01207141]
[1641172823003,0.249,47054.0,47043.0,0.14033567]
[1641172823205,0.189,47054.0,47045.0,0.01207134]
[1641172823404,0.249,47054.0,47044.0,0.01207134]
[1641172823603,0.249,47054.0,47043.0,0.14033567]
[1641172823905,0.249,47054.0,47045.0,0.01207141]
[1641172824103,0.06,47054.0,47045.0,0.01207141]
[1641172824303,0.06,47054.0,47044.0,0.01207141]
[1641172824503,0.06,47054.0,47043.0,0.14033567]
[1641172824705,0.248,47054.0,47045.0,0.01207138]
[1641172825205,0.248,47054.0,47043.0,0.14033567]
[1641172825704,0.188,47054.0,47044.0,0.01207163]
[1641172826004,0.41898601,47054.0,47043.0,0.14033567]
[1641172826408,0.41898601,47054.0,47044.0,0.01207161]
[1641172826605,0.60698601,47054.0,47044.0,0.01207161]
[1641172827007,0.60698601,47054.0,47043.0,0.14033567]
[1641172827408,0.18,47051.0,47043.0,0.14033567]
[1641172827907,0.02125961,47053.0,47043.0,0.14033567]
[1641172828309,0.18,47048.0,47043.0,0.14033567]
[1641172828519,0.02126157,47049.0,47043.0,0.14033567]
[1641172830621,0.21326157,47049.0,47043.0,0.14033567]
[1641172832021,0.02126157,47049.0,47043.0,0.14033567]
[1641172832622,0.21326157,47049.0,47043.0,0.14033567]
[1641172833324,0.18,47048.0,47043.0,0.14033567]
[1641172834723,0.373,47048.0,47039.0,0.14033567]
[1641172835424,0.193,47048.0,47039.0,0.14033567]
[1641172835624,0.373,47048.0,47039.0,0.14033567]
[1641172836025,0.73198601,47048.0,47039.0,0.14033567]
[1641172836226,0.67932168,47048.0,47039.0,0.14033567]
[1641172836528,0.42510854,47047.0,47039.0,0.14033567]
[1641172836726,0.48176854,47047.0,47039.0,0.14033567]
[1641172836926,0.84075455,47047.0,47039.0,0.14033567]
[1641172838627,1.03375455,47047.0,47039.0,0.14033567]
[1641172839029,0.35898601,47046.0,47039.0,0.14033567]
[1641172840727,0.54998601,47046.0,47039.0,0.14033567]
[1641172841131,0.191,47046.0,47045.0,0.18]
[1641172841330,0.51006941,47053.0,47045.0,0.24366]
[1641172841528,0.51006941,47053.0,47049.0,0.18]
[1641172841729,0.14033567,47059.0,47050.0,0.009794]
[1641172842128,0.14033567,47059.0,47053.0,0.14033567]
[1641172842729,0.14033567,47059.0,47053.0,0.32833567]
[1641172843128,1.24933567,47059.0,47053.0,0.32833567]
[1641172843329,0.42502253,47057.0,47053.0,0.32833567]
[1641172843529,0.48810253,47057.0,47053.0,0.32833567]
[1641172843929,0.181,47054.0,47053.0,0.32833567]
[1641172844129,0.001,47054.0,47048.0,0.14033567]
[1641172844330,0.02125824,47056.0,47048.0,0.14033567]
[1641172844529,0.18,47054.0,47048.0,0.14033567]
[1641172844828,0.366,47054.0,47048.0,0.183]
[1641172845032,0.02126004,47052.0,47048.0,0.183]
[1641172845730,0.09405113,47051.0,47048.0,0.183]
[1641172846133,0.09405113,47051.0,47043.0,0.14033567]
[1641172846630,0.09405113,47051.0,47043.0,0.33433567]
[1641172847834,0.07263946,47050.0,47043.0,0.33433567]
[1641172848034,0.07263946,47050.0,47043.0,0.14033567]
[1641172848633,0.07263946,47050.0,47043.0,0.33433567]
[1641172849436,0.02126004,47052.0,47043.0,0.33433567]
[1641172849837,0.20126004,47052.0,47043.0,0.33433567]
[1641172850337,0.93476268,47051.0,47043.0,0.33433567]
[1641172850740,0.93476268,47051.0,47043.0,0.33333567]
[1641172851838,0.36031233,47048.0,47043.0,0.33333567]
[1641172852039,0.36031233,47048.0,47043.0,0.14033567]
[1641172852737,0.36031233,47048.0,47043.0,0.33033567]
[1641172854239,0.36031233,47049.0,47043.0,0.14033567]
[1641172854840,0.36031233,47049.0,47043.0,0.33133567]
[1641172856239,0.36031233,47049.0,47043.0,0.14033567]
[1641172856844,0.36031233,47049.0,47043.0,0.33133567]
[1641172858042,0.10340203,47050.0,47043.0,0.14033567]
[1641172858242,1.53100368,47049.0,47043.0,0.14033567]
[1641172858443,1.53100368,47049.0,47046.0,0.36136706]
[1641172859046,0.0916571,47049.0,47046.0,0.36136706]
[1641172859847,0.0916571,47049.0,47047.0,0.36136706]
[1641172860346,0.0916571,47049.0,47043.0,0.98352544]
[1641172860347,1.53100368,47049.0,47046.0,0.36136706]
[1641172860751,1.53100368,47049.0,47047.0,0.191]
[1641172861251,0.0916571,47049.0,47047.0,0.191]
[1641172862050,0.0916571,47049.0,47046.0,0.36136706]
[1641172862750,0.0916571,47049.0,47046.0,0.55236706]
[1641172864351,0.0916571,47049.0,47046.0,0.36136706]
[1641172864752,0.0916571,47049.0,47046.0,0.55236706]
[1641172866153,0.0916571,47049.0,47046.0,0.36136706]
[1641172866353,1.53100368,47049.0,47047.0,0.36136706]
[1641172866854,1.43934658,47048.0,47046.0,0.55236706]
[1641172867956,1.43934658,47047.0,47046.0,0.55236706]
[1641172868154,1.43934658,47047.0,47045.0,0.36136706]
[1641172868754,1.61534658,47047.0,47045.0,0.54636706]
[1641172868955,0.176,47047.0,47045.0,0.54636706]
[1641172869156,0.176,47047.0,47045.0,0.185]
[1641172870157,0.0916571,47049.0,47043.0,0.36136706]
[1641172870361,0.14033567,47044.0,47043.0,0.36136706]
[1641172870755,0.14033567,47044.0,47043.0,0.54136706]
[1641172871556,0.23199277,47044.0,47043.0,0.54136706]
[1641172872156,0.30887812,47044.0,47043.0,0.54136706]
[1641172872357,0.30887812,47044.0,47043.0,0.36136706]
[1641172872757,0.47287812,47044.0,47043.0,0.54636706]
[1641172874660,0.30887812,47044.0,47043.0,0.36136706]
[1641172874860,0.47287812,47044.0,47043.0,0.54636706]
[1641172876063,0.30887812,47044.0,47043.0,0.36136706]
[1641172876264,0.73401805,47044.0,47043.0,0.36136706]
[1641172876763,0.89901805,47044.0,47043.0,0.54636706]
[1641172877677,1.00052965,47044.0,47043.0,0.54636706]
[1641172878379,1.00052965,47044.0,47043.0,0.36136706]
[1641172878380,0.83552965,47044.0,47043.0,0.36136706]
[1641172878778,0.99952965,47044.0,47043.0,0.54636706]
[1641172879278,0.9226443,47044.0,47043.0,0.54636706]
[1641172879578,0.9226443,47044.0,47043.0,0.66709689]
[1641172880179,0.7586443,47044.0,47043.0,0.48209689]
[1641172880780,0.9236443,47044.0,47043.0,0.66709689]
[1641172880983,0.9236443,47044.0,47043.0,0.30572983]
[1641172881681,2.37021181,47044.0,47043.0,0.30572983]
[1641172882183,2.20521181,47044.0,47043.0,0.12072983]
[1641172882583,2.20521181,47044.0,47042.0,0.12072983]
[1641172882783,2.37021181,47044.0,47043.0,0.185]
[1641172883184,2.37021181,47044.0,47043.0,0.30572983]
[1641172884388,2.40647584,47044.0,47043.0,0.12072983]
[1641172884588,3.09033591,47044.0,47040.0,0.17772075]
[1641172884788,3.34528591,47044.0,47043.0,0.177]
[1641172885088,3.16528591,47044.0,47043.0,0.177]
[1641172885287,1.7187184,47044.0,47043.0,0.177]
[1641172885489,1.7197184,47044.0,47043.0,0.177]
[1641172885888,1.8997184,47044.0,47043.0,0.177]
[1641172886390,1.5517184,47044.0,47034.0,0.84318977]
[1641172886589,1.5507184,47044.0,47034.0,0.84318977]
[1641172886892,1.7457184,47044.0,47034.0,0.84318977]
[1641172887290,1.44345311,47039.0,47033.0,0.98352544]
[1641172887491,0.06177586,47038.0,47033.0,0.98352544]
[1641172887891,0.06177586,47038.0,47034.0,0.01207465]
[1641172888093,1.50522897,47038.0,47034.0,0.01207465]
[1641172888795,1.57522897,47038.0,47034.0,0.20007465]
[1641172889195,1.57522897,47038.0,47034.0,0.188]
[1641172889399,1.57522897,47038.0,47035.0,0.01207435]
[1641172889599,0.0916571,47037.0,47035.0,0.01207435]
[1641172890797,0.0916571,47037.0,47035.0,0.20607435]
[1641172891198,0.0916571,47037.0,47035.0,0.194]
[1641172892198,0.0916571,47037.0,47034.0,0.84318977]
[1641172892699,0.0916571,47037.0,47035.0,0.01207421]
[1641172893298,0.0916571,47037.0,47035.0,0.85526398]
[1641172893700,0.0916571,47037.0,47036.0,0.01207421]
[1641172893899,0.0916571,47037.0,47036.0,0.08727421]
[1641172894900,0.0916571,47037.0,47036.0,0.2702]
[1641172896302,0.0916571,47037.0,47036.0,0.0752]
[1641172896802,0.0916571,47037.0,47036.0,0.2702]
[1641172898204,0.0916571,47037.0,47036.0,0.0752]
[1641172898903,0.0916571,47037.0,47036.0,0.2672]
[1641172900304,0.0916571,47037.0,47036.0,0.0752]
[1641172900505,0.0916571,47037.0,47035.0,0.84318977]
[1641172900907,0.0916571,47037.0,47036.0,0.191]
[1641172901105,0.0916571,47037.0,47036.0,0.31174162]
[1641172902810,0.0916571,47037.0,47036.0,0.12074162]
[1641172903010,0.0916571,47037.0,47036.0,0.31274162]
[1641172905008,0.0916571,47037.0,47036.0,0.50774162]
[1641172906312,0.0916571,47037.0,47036.0,0.12074162]
[1641172906911,0.0916571,47037.0,47036.0,0.31374162]
[1641172907112,0.0916571,47037.0,47036.0,0.193]
[1641172908214,0.0916571,47037.0,47036.0,0.60380574]
[1641172908914,0.0916571,47037.0,47036.0,0.79680574]
[1641172909818,0.0916571,47037.0,47036.0,0.193]
[1641172910219,0.0916571,47037.0,47035.0,0.60380574]
[1641172910417,0.0916571,47037.0,47036.0,0.60380574]
[1641172911031,0.93526712,47046.0,47036.0,1.00320851]
[1641172911217,1.08661743,47052.0,47043.0,0.18]
[1641172911419,1.06535717,47052.0,47044.0,0.009794]
[1641172912425,2.21354971,47054.0,47044.0,0.009794]
[1641172912623,1.06535717,47054.0,47050.0,0.14033567]
[1641172913524,0.42504357,47055.0,47050.0,0.14033567]
[1641172913924,0.0727918,47054.0,47050.0,0.14033567]
[1641172915026,0.0727918,47054.0,47050.0,0.32133567]
[1641172916828,0.0727918,47054.0,47050.0,0.14033567]
[1641172917029,0.0727918,47054.0,47050.0,0.32133567]
[1641172917833,0.42504357,47055.0,47050.0,0.32133567]
[1641172918331,0.42504357,47055.0,47050.0,0.14033567]
[1641172918941,0.18,47052.0,47050.0,0.32133567]
[1641172919139,0.24408054,47050.0,47045.0,0.36219917]
[1641172919340,0.18,47048.0,47045.0,0.36219917]
[1641172920843,0.08261957,47047.0,47040.0,0.36219917]
[1641172921843,1.44475167,47043.0,47040.0,0.36219917]
[1641172922744,1.44475167,47044.0,47040.0,0.36219917]
[1641172923044,0.186,47043.0,47041.0,0.36219917]
[1641172924444,1.44475167,47044.0,47041.0,0.36219917]
[1641172924945,1.63975167,47044.0,47041.0,0.36219917]
[1641172925749,1.44475167,47043.0,47040.0,0.36219917]
[1641172927050,1.63875167,47043.0,47040.0,0.36219917]
[1641172927248,1.73283647,47043.0,47040.0,0.36219917]
[1641172927650,1.53883647,47042.0,47039.0,0.36219917]
[1641172928950,1.73583647,47042.0,47039.0,0.36219917]
[1641172929451,2.16099455,47042.0,47039.0,0.36219917]
[1641172929651,0.0940848,47041.0,47039.0,0.36219917]
[1641172931152,0.2810848,47041.0,47039.0,0.47219917]
[1641172932353,0.0940848,47041.0,47039.0,0.36219917]
[1641172932959,0.2800848,47041.0,47039.0,0.36219917]
[1641172933757,0.0940848,47040.0,47038.0,0.50253484]
[1641172935057,0.2750848,47040.0,47038.0,0.50253484]
[1641172935459,0.2750848,47040.0,47038.0,0.07733725]
[1641172936257,0.2750848,47040.0,47037.0,0.60380574]
[1641172936466,0.2750848,47040.0,47036.0,0.62506519]
[1641172936467,0.181,47040.0,47036.0,0.62506519]
[1641172936860,0.14033567,47040.0,47037.0,0.12074631]
[1641172937060,0.33133567,47040.0,47037.0,0.12074631]
[1641172937862,0.0940848,47039.0,47037.0,0.12074631]
[1641172938962,0.2860848,47039.0,47037.0,0.12074631]
[1641172939663,0.2860848,47039.0,47036.0,0.02125945]
[1641172939864,0.2860848,47039.0,47035.0,0.60380574]
[1641172940566,0.0940848,47038.0,47034.0,0.60380574]
[1641172940966,0.71127916,47038.0,47034.0,0.60380574]
[1641172941464,0.61719436,47038.0,47034.0,0.60380574]
[1641172942265,0.0940848,47037.0,47034.0,0.60380574]
[1641172942966,0.2760848,47037.0,47034.0,0.60380574]
[1641172943366,0.0940848,47036.0,47034.0,0.60380574]
[1641172943968,0.182,47037.0,47034.0,0.60380574]
[1641172943969,0.0940848,47035.0,47034.0,0.60380574]
[1641172944970,0.2730848,47035.0,47034.0,0.60380574]
[1641172948273,0.0940848,47035.0,47034.0,0.60380574]
[1641172948776,0.0940848,47035.0,47033.0,0.60380574]
[1641172948974,0.2790848,47035.0,47033.0,0.60380574]
[1641172950476,0.51930658,47035.0,47033.0,0.60380574]
[1641172950976,0.0940848,47034.0,47033.0,0.96604987]
[1641172951278,0.0940848,47034.0,47033.0,0.36224413]
[1641172953176,0.2200848,47034.0,47033.0,0.36224413]
[1641172953880,0.2200848,47034.0,47032.0,0.36224413]
[1641172954478,0.56555745,47035.0,47032.0,0.36224413]
[1641172954479,0.0940848,47033.0,47032.0,0.60380574]
[1641172954879,0.0940848,47033.0,47032.0,0.61588119]
[1641172955080,0.1030848,47033.0,47032.0,0.61588119]
[1641172956482,0.0940848,47033.0,47032.0,0.61588119]
[1641172957082,0.2570848,47033.0,47032.0,0.61588119]
[1641172958482,0.0940848,47033.0,47032.0,0.61588119]
[1641172959085,0.1030848,47033.0,47032.0,0.61588119]
[1641172960295,0.1030848,47033.0,47032.0,0.60380574]
[1641172960501,0.0940848,47033.0,47032.0,0.60380574]
[1641172960897,0.0940848,47033.0,47032.0,0.12075512]
[1641172961094,0.2130848,47033.0,47032.0,0.12075512]
[1641172962297,0.0940848,47033.0,47032.0,0.12075512]
[1641172963097,0.1030848,47033.0,47032.0,0.12075512]
[1641172964499,0.0940848,47033.0,47032.0,0.12075512]
[1641172965100,0.2520848,47033.0,47032.0,0.12075512]
[1641172966401,0.0940848,47033.0,47032.0,0.12075512]
[1641172967101,0.2620848,47033.0,47032.0,0.12075512]
[1641172967702,0.3388448,47033.0,47032.0,0.12075512]
[1641172967903,0.3388448,47033.0,47031.0,0.29930658]
[1641172968303,0.1708448,47033.0,47031.0,0.29930658]
[1641172969104,0.3588448,47033.0,47031.0,0.29930658]
[1641172969304,0.3588448,47033.0,47030.0,0.84318977]
[1641172969502,0.0940848,47032.0,47030.0,0.84318977]
[1641172969702,0.0940848,47032.0,47026.0,0.84318977]
[1641172970104,0.14033567,47027.0,47026.0,0.84318977]
[1641172970603,0.14033567,47027.0,47026.0,0.85526642]
[1641172971203,0.31833567,47027.0,47026.0,0.85526642]
[1641172971907,1.62960706,47027.0,47026.0,0.85526642]
[1641172972105,1.86302753,47027.0,47026.0,0.01207665]
[1641172972303,1.86302753,47027.0,47020.0,0.02]
[1641172972503,1.109,47023.0,46997.0,1.68700609]
[1641172972704,0.02127374,47022.0,47004.0,1.98297374]
[1641172972904,0.02127374,47022.0,47008.0,1.72186231]
[1641172973504,0.42536086,47019.0,47016.0,0.01207937]
[1641172974107,0.14033567,47017.0,47014.0,1.20749131]
[1641172974508,0.14033567,47017.0,47015.0,0.01207937]
[1641172975206,0.28233567,47017.0,47015.0,0.01207937]
[1641172975708,0.0940848,47016.0,47015.0,0.01207937]
[1641172975907,0.17737555,47016.0,47008.0,0.19207937]
[1641172976107,0.0940848,47016.0,47015.0,0.01207937]
[1641172976508,0.0940848,47016.0,47009.0,0.01207937]
[1641172976712,0.0940848,47016.0,47015.0,0.01207937]
[1641172976908,0.0940848,47016.0,47010.0,0.01207937]
[1641172977110,0.2540848,47016.0,47010.0,0.01207937]
[1641172977308,0.2540848,47016.0,47009.0,0.01207937]
[1641172977508,0.2540848,47016.0,47011.0,0.01207937]
[1641172977708,0.2540848,47016.0,47010.0,0.01207937]
[1641172977909,0.2540848,47016.0,47012.0,0.01207937]
[1641172978110,0.09972871,47015.0,47012.0,0.01207937]
[1641172978310,0.09972871,47015.0,47009.0,0.01207937]
[1641172978511,0.00564391,47014.0,47013.0,0.01207937]
[1641172978812,0.00564391,47014.0,47010.0,0.01207937]
[1641172979011,0.00564391,47014.0,47013.0,0.01207937]
[1641172979212,0.15464391,47014.0,47013.0,0.01207937]
[1641172979411,0.15464391,47014.0,47009.0,0.01207937]
[1641172979613,0.21555391,47014.0,47013.0,0.01207937]
[1641172979813,0.00564391,47013.0,47010.0,0.01207937]
[1641172980313,0.30963871,47014.0,47007.0,0.32033567]
[1641172980514,0.1549948,47014.0,47012.0,1.20767562]
[1641172981112,0.3319948,47014.0,47012.0,1.20767562]
[1641172981313,0.93425693,47013.0,47012.0,1.20767562]
[1641172982118,0.0940848,47013.0,47012.0,1.20767562]
[1641172982518,0.1787948,47013.0,47012.0,1.20767562]
[1641172982716,0.1797948,47013.0,47012.0,1.20767562]
[1641172982916,0.1797948,47013.0,47012.0,0.18197967]
[1641172983115,0.27171,47013.0,47012.0,0.18197967]
[1641172983316,0.27171,47013.0,47012.0,7.967e-05]
[1641172983517,1.4019911,47013.0,47009.0,1.32844318]
[1641172983719,1.53544683,47010.0,47009.0,1.32844318]
[1641172983917,1.71544683,47010.0,47009.0,1.32844318]
[1641172984317,1.8557825,47010.0,47009.0,1.32844318]
[1641172984917,1.93447605,47010.0,47009.0,1.32844318]
[1641172985221,1.01147605,47010.0,47009.0,1.32844318]
[1641172985618,1.01147605,47010.0,47007.0,0.84580204]
[1641172985819,0.001,47008.0,47007.0,0.45360839]
[1641172986018,0.181,47008.0,47007.0,0.45360839]
[1641172986420,0.20228273,47008.0,47007.0,0.12850839]
[1641172986619,0.20228273,47008.0,47002.0,1.32844318]
[1641172986820,0.001,47003.0,47002.0,1.32844318]
[1641172987023,0.001,47003.0,47000.0,0.63593247]
[1641172987024,0.0928,47003.0,47000.0,1.96437565]
[1641172987224,0.0918,47003.0,47000.0,1.96437565]
[1641172987421,0.001,47001.0,47000.0,1.96437565]
[1641172987822,1.37282065,47001.0,47000.0,0.5]
[1641172988020,0.08382065,47001.0,47000.0,0.5]
[1641172988221,0.22415632,47001.0,47000.0,0.5]
[1641172989222,0.41315632,47001.0,47000.0,0.5]
[1641172989423,0.52196938,47001.0,47000.0,0.5]
[1641172990426,1.62196938,47001.0,47000.0,0.5]
[1641172990825,0.33296938,47001.0,47000.0,0.5]
[1641172991223,0.52196938,47001.0,47000.0,0.5]
[1641172991425,0.43914873,47001.0,47000.0,0.5]
[1641172991625,0.43814873,47001.0,47000.0,0.5]
[1641172991827,0.29781306,47001.0,47000.0,0.5]
[1641172992026,1.43970904,47005.0,47000.0,0.68]
[1641172992226,1.43970904,47005.0,47001.0,0.14033567]
[1641172992626,1.43970904,47008.0,47001.0,0.14033567]
[1641172993228,1.43970904,47008.0,47001.0,0.51233567]
[1641172993629,1.58004471,47010.0,47002.0,1.20851098]
[1641172994629,1.58004471,47010.0,47003.0,1.20851098]
[1641172995033,0.10221417,47005.0,47003.0,1.20851098]
[1641172995229,0.15987417,47005.0,47004.0,0.84584098]
[1641172995629,1.26887417,47005.0,47004.0,0.84584098]
[1641172995830,1.27593765,47005.0,47004.0,0.84584098]
[1641172996230,1.41627332,47005.0,47004.0,0.54802792]
[1641172996431,1.43755487,47005.0,47003.0,0.186]
[1641172996632,0.181,47004.0,47002.0,0.54802792]
[1641172996830,0.001,47003.0,47002.0,0.54802792]
[1641172997234,0.13780554,47003.0,47002.0,0.181]
[1641172997933,0.23590259,47003.0,47002.0,0.181]
[1641172998533,0.23590259,47003.0,47000.0,0.5]
[1641172998735,0.001,47001.0,47000.0,0.5]
[1641172999135,0.001,47001.0,47000.0,0.684]
[1641172999333,0.00706348,47001.0,47000.0,0.684]
[1641173000636,0.00706348,47001.0,47000.0,0.5]
[1641173001236,0.18306348,47001.0,47000.0,0.687]
[1641173002536,0.00706348,47001.0,47000.0,0.5]
[1641173003236,0.17706348,47001.0,47000.0,0.687]
[1641173003937,0.17706348,47001.0,46998.0,0.96996395]
[1641173004138,0.001,46999.0,46998.0,0.96996395]
[1641173004538,0.00706348,46999.0,46998.0,0.96996395]
[1641173005239,0.19706348,46999.0,46998.0,0.96996395]
[1641173005938,0.19706348,46999.0,46994.0,1.32844318]
[1641173006138,0.19706348,46999.0,46992.0,0.14033567]
[1641173006139,0.19606348,46999.0,46993.0,1.32844318]
[1641173006339,0.00606348,46998.0,46993.0,1.32844318]
[1641173006741,1.11506348,46998.0,46993.0,1.32844318]
[1641173006941,0.51068299,46996.0,46993.0,1.32844318]
[1641173007141,0.51068299,46996.0,46992.0,0.14033567]
[1641173007341,0.00606348,46995.0,46992.0,0.14033567]
[1641173007741,0.00606348,46995.0,46993.0,0.01208405]
[1641173008042,0.00606348,46994.0,46993.0,0.01208405]
[1641173008441,0.00606348,46994.0,46992.0,0.14033567]
[1641173009258,0.30064826,46994.0,46993.0,0.01208372]
[1641173010560,0.11364826,46994.0,46993.0,0.01208372]
[1641173011362,0.29864826,46994.0,46993.0,0.07138372]
[1641173011561,1.58004471,47000.0,46993.0,0.25138372]
[1641173011760,1.58004471,47000.0,46997.0,0.18]
[1641173012364,0.14033567,47000.0,46997.0,0.18]
[1641173012768,0.00524069,46999.0,46997.0,0.18]
[1641173013164,0.00524069,46999.0,46997.0,0.372]
[1641173013664,0.00524069,47002.0,46997.0,0.372]
[1641173013863,0.00524069,46998.0,46997.0,0.372]
[1641173014263,0.00524069,47001.0,46997.0,0.372]
[1641173014464,0.00524069,47001.0,46999.0,0.14033567]
[1641173014663,1.43970904,47002.0,46999.0,0.14033567]